[Event "Late-Titled-Tuesday-Blitz-April-23-2024"]
[Site "Chess.com"]
[Date "2024.04.23"]
[Round "10"]
[White "temiksmozg"]
[Black "Valiyev_Shahin"]
[Result "1-0"]
[WhiteElo "2715"]
[BlackElo "2562"]
[TimeControl "180+1"]
[EndTime "15:56:31 PDT"]
[Termination "temiksmozg won on time"]

1. e4 {[%clk 0:03:00.9]} 1... c5 {[%clk 0:02:58.4]} 2. Nf3 {[%clk 0:03:00.5]}
2... d6 {[%clk 0:02:59.1]} 3. d4 {[%clk 0:03:00.4]} 3... cxd4 {[%clk 0:03:00]}
4. Nxd4 {[%clk 0:03:01]} 4... Nf6 {[%clk 0:03:00.9]} 5. Nc3 {[%clk 0:03:01.3]}
5... a6 {[%clk 0:03:01.7]} 6. Be2 {[%clk 0:03:01.7]} 6... e5 {[%clk 0:03:02]} 7.
Nb3 {[%clk 0:03:02.1]} 7... Be7 {[%clk 0:03:02.7]} 8. Be3 {[%clk 0:03:01.1]}
8... Be6 {[%clk 0:03:03.3]} 9. Nd5 {[%clk 0:03:01]} 9... Nbd7 {[%clk 0:03:02.7]}
10. Qd3 {[%clk 0:02:59.7]} 10... Bxd5 {[%clk 0:02:58.6]} 11. exd5 {[%clk
0:03:00.6]} 11... Rc8 {[%clk 0:02:57.4]} 12. c4 {[%clk 0:03:00.2]} 12... a5
{[%clk 0:02:57.1]} 13. g4 {[%clk 0:02:57.5]} 13... h6 {[%clk 0:02:51]} 14. a4
{[%clk 0:02:48]} 14... b6 {[%clk 0:02:51.1]} 15. g5 {[%clk 0:02:38.7]} 15...
hxg5 {[%clk 0:02:50.2]} 16. Bxg5 {[%clk 0:02:39.6]} 16... Nc5 {[%clk 0:02:32.1]}
17. Nxc5 {[%clk 0:02:39.5]} 17... bxc5 {[%clk 0:02:31.2]} 18. h4 {[%clk
0:02:33.3]} 18... Rb8 {[%clk 0:02:28.8]} 19. Qc2 {[%clk 0:02:29.3]} 19... Nxd5
{[%clk 0:02:16.4]} 20. cxd5 {[%clk 0:02:26]} 20... Bxg5 {[%clk 0:02:15.7]} 21.
Bb5+ {[%clk 0:02:26.6]} 21... Kf8 {[%clk 0:02:15.4]} 22. Ra3 {[%clk 0:02:16.7]}
22... Bf4 {[%clk 0:01:58.1]} 23. Qf5 {[%clk 0:02:12.1]} 23... g6 {[%clk
0:01:53.7]} 24. Qg4 {[%clk 0:02:10.6]} 24... Rh5 {[%clk 0:01:42.7]} 25. Rah3
{[%clk 0:02:05.2]} 25... Qc8 {[%clk 0:01:38.6]} 26. Qg2 {[%clk 0:01:53.5]} 26...
Qf5 {[%clk 0:01:36.5]} 27. Qf3 {[%clk 0:01:40.8]} 27... Qb1+ {[%clk 0:01:21.8]}
28. Ke2 {[%clk 0:01:41.4]} 28... Qxb2+ {[%clk 0:01:19.9]} 29. Kf1 {[%clk
0:01:41.7]} 29... Kg7 {[%clk 0:00:52.5]} 30. Kg2 {[%clk 0:01:39.9]} 30... Rbh8
{[%clk 0:00:52.2]} 31. Qd3 {[%clk 0:01:32.9]} 31... Qd2 {[%clk 0:00:38.7]} 32.
Qxd2 {[%clk 0:01:16]} 1-0

[Event "Late-Titled-Tuesday-Blitz-April-23-2024"]
[Site "Chess.com"]
[Date "2024.04.23"]
[Round "10"]
[White "finec2"]
[Black "ChessGiantYouTube"]
[Result "1-0"]
[WhiteElo "2242"]
[BlackElo "2340"]
[TimeControl "180+1"]
[EndTime "15:56:42 PDT"]
[Termination "finec2 won on time"]

1. e4 {[%clk 0:02:59.8]} 1... g6 {[%clk 0:02:56.9]} 2. d4 {[%clk 0:02:59.6]}
2... Bg7 {[%clk 0:02:57.2]} 3. Nc3 {[%clk 0:02:59.3]} 3... d6 {[%clk 0:02:56.7]}
4. f4 {[%clk 0:02:57.9]} 4... e6 {[%clk 0:02:55.6]} 5. Nf3 {[%clk 0:02:57.3]}
5... Ne7 {[%clk 0:02:26.4]} 6. Be2 {[%clk 0:02:56.7]} 6... b6 {[%clk 0:02:25.9]}
7. O-O {[%clk 0:02:49.7]} 7... O-O {[%clk 0:02:25.1]} 8. Be3 {[%clk 0:02:38.6]}
8... c5 {[%clk 0:02:08.7]} 9. Qd2 {[%clk 0:02:34.7]} 9... Nbc6 {[%clk 0:02:05]}
10. Rad1 {[%clk 0:02:29.8]} 10... cxd4 {[%clk 0:01:50.1]} 11. Nxd4 {[%clk
0:02:28.9]} 11... Bb7 {[%clk 0:01:24]} 12. Bf3 {[%clk 0:02:15.5]} 12... d5
{[%clk 0:01:12]} 13. exd5 {[%clk 0:02:08.4]} 13... exd5 {[%clk 0:01:04.4]} 14.
Nxc6 {[%clk 0:01:58.1]} 14... Bxc6 {[%clk 0:01:01]} 15. Bd4 {[%clk 0:01:56.7]}
15... Bxd4+ {[%clk 0:00:58.1]} 16. Qxd4 {[%clk 0:01:56]} 16... Rc8 {[%clk
0:00:43.1]} 17. g4 {[%clk 0:01:27.2]} 17... Qc7 {[%clk 0:00:38.1]} 18. Bg2
{[%clk 0:01:22.9]} 18... Bb7 {[%clk 0:00:35.1]} 19. Rfe1 {[%clk 0:01:09.2]}
19... Rfe8 {[%clk 0:00:34.2]} 20. Nb5 {[%clk 0:01:06.9]} 20... Qb8 {[%clk
0:00:23.2]} 21. Qf6 {[%clk 0:01:00.4]} 21... Nc6 {[%clk 0:00:08.9]} 22. Nd6
{[%clk 0:00:55.8]} 22... Rxe1+ {[%clk 0:00:09]} 23. Rxe1 {[%clk 0:00:55.7]}
23... Rf8 {[%clk 0:00:09.1]} 24. Bxd5 {[%clk 0:00:53]} 24... Qc7 {[%clk
0:00:05.6]} 25. Nxf7 {[%clk 0:00:48.6]} 1-0

[Event "Late-Titled-Tuesday-Blitz-April-23-2024"]
[Site "Chess.com"]
[Date "2024.04.23"]
[Round "10"]
[White "Alexei_Gubajdullin"]
[Black "CarlosjPineror"]
[Result "0-1"]
[WhiteElo "2592"]
[BlackElo "2763"]
[TimeControl "180+1"]
[EndTime "15:56:43 PDT"]
[Termination "CarlosjPineror won by resignation"]

1. Nf3 {[%clk 0:02:59.4]} 1... Nf6 {[%clk 0:02:49.8]} 2. g3 {[%clk 0:02:59.4]}
2... g6 {[%clk 0:02:50]} 3. Bg2 {[%clk 0:02:59.7]} 3... Bg7 {[%clk 0:02:50.9]}
4. O-O {[%clk 0:02:59.9]} 4... O-O {[%clk 0:02:51.5]} 5. d3 {[%clk 0:03:00.3]}
5... c5 {[%clk 0:02:46.9]} 6. Nbd2 {[%clk 0:03:00.5]} 6... Nc6 {[%clk
0:02:47.5]} 7. e4 {[%clk 0:03:00.6]} 7... d6 {[%clk 0:02:47.4]} 8. Re1 {[%clk
0:03:01.1]} 8... Bg4 {[%clk 0:02:46.1]} 9. h3 {[%clk 0:02:59.9]} 9... Bxf3
{[%clk 0:02:46.5]} 10. Nxf3 {[%clk 0:02:59.6]} 10... Nd7 {[%clk 0:02:46.7]} 11.
c3 {[%clk 0:02:57]} 11... Rb8 {[%clk 0:02:46.9]} 12. d4 {[%clk 0:02:56.7]} 12...
cxd4 {[%clk 0:02:45.8]} 13. cxd4 {[%clk 0:02:56.9]} 13... b5 {[%clk 0:02:45.8]}
14. d5 {[%clk 0:02:52]} 14... Na5 {[%clk 0:02:39.7]} 15. Rb1 {[%clk 0:02:44.8]}
15... b4 {[%clk 0:02:32]} 16. b3 {[%clk 0:02:43.1]} 16... Nb7 {[%clk 0:02:29.1]}
17. Nd4 {[%clk 0:02:41.8]} 17... Qb6 {[%clk 0:02:25.2]} 18. Nc6 {[%clk
0:02:37.8]} 18... Rbe8 {[%clk 0:02:18]} 19. Be3 {[%clk 0:02:37.6]} 19... Nbc5
{[%clk 0:02:18]} 20. Qd2 {[%clk 0:02:05.9]} 20... Bc3 {[%clk 0:02:13.8]} 21. Qe2
{[%clk 0:02:01.3]} 21... Bxe1 {[%clk 0:02:14.2]} 22. Rxe1 {[%clk 0:01:59.2]}
22... e5 {[%clk 0:02:14.4]} 23. Bh6 {[%clk 0:01:54.1]} 23... Nb8 {[%clk
0:02:10.5]} 24. Qf3 {[%clk 0:01:51.2]} 24... f6 {[%clk 0:02:04.8]} 25. Ne7+
{[%clk 0:01:24.4]} 25... Rxe7 {[%clk 0:02:00.6]} 26. Bxf8 {[%clk 0:01:22.7]}
26... Kxf8 {[%clk 0:02:01.5]} 27. Qxf6+ {[%clk 0:01:21.9]} 27... Rf7 {[%clk
0:02:00.8]} 28. Qh8+ {[%clk 0:01:19.6]} 28... Ke7 {[%clk 0:02:00.1]} 29. Re3
{[%clk 0:00:59]} 29... Nbd7 {[%clk 0:01:51.6]} 30. h4 {[%clk 0:00:52.9]} 30...
Qb8 {[%clk 0:01:49]} 31. Qxb8 {[%clk 0:00:51.2]} 31... Nxb8 {[%clk 0:01:49.9]}
32. Bh3 {[%clk 0:00:49.7]} 32... h5 {[%clk 0:01:49.5]} 33. f3 {[%clk 0:00:49.3]}
33... a6 {[%clk 0:01:47.9]} 34. Kf2 {[%clk 0:00:47.9]} 34... a5 {[%clk
0:01:48.1]} 35. Ke2 {[%clk 0:00:47.6]} 35... Nba6 {[%clk 0:01:47.7]} 36. Bc8
{[%clk 0:00:37.7]} 36... Nc7 {[%clk 0:01:47.9]} 37. Bh3 {[%clk 0:00:33.4]} 37...
Nb5 {[%clk 0:01:48.2]} 38. Kd2 {[%clk 0:00:11.6]} 38... Nc3 {[%clk 0:01:44.9]}
39. f4 {[%clk 0:00:10]} 39... exf4 {[%clk 0:01:42]} 40. gxf4 {[%clk 0:00:09.9]}
40... N3xe4+ {[%clk 0:01:42.7]} 41. Kc2 {[%clk 0:00:08.2]} 41... Rxf4 {[%clk
0:01:43.2]} 42. Bc8 {[%clk 0:00:08]} 42... Kf6 {[%clk 0:01:43.4]} 43. Kc1 {[%clk
0:00:05.2]} 43... Rf2 {[%clk 0:01:43]} 44. Bh3 {[%clk 0:00:03.2]} 44... Nc3
{[%clk 0:01:41.4]} 45. Rg3 {[%clk 0:00:01.8]} 45... Ne2+ {[%clk 0:01:39.3]} 46.
Kd1 {[%clk 0:00:01.5]} 46... Nxg3 {[%clk 0:01:40.2]} 47. Ke1 {[%clk 0:00:02.3]}
47... Rxa2 {[%clk 0:01:40.5]} 0-1

[Event "Late-Titled-Tuesday-Blitz-April-23-2024"]
[Site "Chess.com"]
[Date "2024.04.23"]
[Round "10"]
[White "reevecanada"]
[Black "zverr1"]
[Result "1-0"]
[WhiteElo "2619"]
[BlackElo "2466"]
[TimeControl "180+1"]
[EndTime "15:56:43 PDT"]
[Termination "reevecanada won by checkmate"]

1. e4 {[%clk 0:03:00.9]} 1... c5 {[%clk 0:02:55.9]} 2. Nf3 {[%clk 0:02:59.8]}
2... Nc6 {[%clk 0:02:55.6]} 3. Bb5 {[%clk 0:02:59.9]} 3... Nf6 {[%clk
0:02:53.8]} 4. e5 {[%clk 0:02:58.5]} 4... Nd5 {[%clk 0:02:53]} 5. Nc3 {[%clk
0:02:57.7]} 5... e6 {[%clk 0:02:30]} 6. Nxd5 {[%clk 0:02:49]} 6... exd5 {[%clk
0:02:28.9]} 7. O-O {[%clk 0:02:49]} 7... a6 {[%clk 0:02:24.7]} 8. Bxc6 {[%clk
0:02:48.1]} 8... dxc6 {[%clk 0:02:24.5]} 9. h3 {[%clk 0:02:45.6]} 9... c4 {[%clk
0:02:18.3]} 10. b3 {[%clk 0:02:42.2]} 10... cxb3 {[%clk 0:02:18.7]} 11. axb3
{[%clk 0:02:39.9]} 11... Be7 {[%clk 0:02:15.5]} 12. Bb2 {[%clk 0:02:37.9]} 12...
O-O {[%clk 0:02:14.9]} 13. c4 {[%clk 0:02:36]} 13... Be6 {[%clk 0:02:08]} 14.
Nd4 {[%clk 0:02:31.2]} 14... Qd7 {[%clk 0:01:39.8]} 15. Qc2 {[%clk 0:02:28.9]}
15... Rac8 {[%clk 0:01:27.6]} 16. c5 {[%clk 0:02:27.9]} 16... Rce8 {[%clk
0:00:56.3]} 17. f4 {[%clk 0:02:22.9]} 17... f5 {[%clk 0:00:56.4]} 18. b4 {[%clk
0:02:20]} 18... Bd8 {[%clk 0:00:50.5]} 19. Bc3 {[%clk 0:02:17.4]} 19... Qf7
{[%clk 0:00:49.6]} 20. Rf2 {[%clk 0:02:15.7]} 20... Qh5 {[%clk 0:00:49.3]} 21.
Raf1 {[%clk 0:02:14.2]} 21... Kh8 {[%clk 0:00:48.4]} 22. Rf3 {[%clk 0:02:14.3]}
22... Bh4 {[%clk 0:00:42.5]} 23. g3 {[%clk 0:02:12.4]} 23... Bd8 {[%clk
0:00:40]} 24. Kg2 {[%clk 0:02:10.2]} 24... Qf7 {[%clk 0:00:37.7]} 25. Rh1 {[%clk
0:02:06.1]} 25... Qg6 {[%clk 0:00:32.4]} 26. Kf2 {[%clk 0:01:50.2]} 26... Bc8
{[%clk 0:00:31.7]} 27. g4 {[%clk 0:01:46.4]} 27... Bh4+ {[%clk 0:00:28.8]} 28.
Kf1 {[%clk 0:01:43.9]} 28... Kg8 {[%clk 0:00:20.4]} 29. g5 {[%clk 0:01:40.1]}
29... h6 {[%clk 0:00:16.6]} 30. gxh6 {[%clk 0:01:30.3]} 30... Qxh6 {[%clk
0:00:17.5]} 31. Rg1 {[%clk 0:01:30.2]} 31... g5 {[%clk 0:00:17.3]} 32. fxg5
{[%clk 0:01:29.6]} 32... Qg6 {[%clk 0:00:18]} 33. Rf4 {[%clk 0:01:28.8]} 33...
Bxg5 {[%clk 0:00:18.2]} 34. h4 {[%clk 0:01:28.2]} 34... Bxf4 {[%clk 0:00:13.5]}
35. Rxg6+ {[%clk 0:01:28.7]} 35... Kf7 {[%clk 0:00:14.2]} 36. Rf6+ {[%clk
0:01:28.9]} 36... Ke7 {[%clk 0:00:14.7]} 37. Nxf5+ {[%clk 0:01:29.3]} 37... Kd8
{[%clk 0:00:12]} 38. Nd6 {[%clk 0:01:28.7]} 38... Bh3+ {[%clk 0:00:09.5]} 39.
Kf2 {[%clk 0:01:28.6]} 39... Bxe5 {[%clk 0:00:05.6]} 40. Bxe5 {[%clk 0:01:27.9]}
40... Rxf6+ {[%clk 0:00:05.5]} 41. Bxf6+ {[%clk 0:01:28.6]} 41... Kd7 {[%clk
0:00:05.4]} 42. Qh7+ {[%clk 0:01:28.7]} 42... Ke6 {[%clk 0:00:05]} 43. Nxe8
{[%clk 0:01:29.2]} 43... Bf5 {[%clk 0:00:04.2]} 44. Qe7# {[%clk 0:01:28.5]} 1-0

[Event "Late-Titled-Tuesday-Blitz-April-23-2024"]
[Site "Chess.com"]
[Date "2024.04.23"]
[Round "10"]
[White "prochn"]
[Black "Horokoskii"]
[Result "1-0"]
[WhiteElo "2467"]
[BlackElo "2198"]
[TimeControl "180+1"]
[EndTime "15:56:43 PDT"]
[Termination "prochn won by resignation"]

1. d4 {[%clk 0:02:59.9]} 1... Nf6 {[%clk 0:02:58.7]} 2. c4 {[%clk 0:02:59.7]}
2... c5 {[%clk 0:02:55.1]} 3. d5 {[%clk 0:02:59.7]} 3... e6 {[%clk 0:02:55.6]}
4. g3 {[%clk 0:02:57]} 4... exd5 {[%clk 0:02:52.6]} 5. cxd5 {[%clk 0:02:57.9]}
5... g6 {[%clk 0:02:52.9]} 6. Bg2 {[%clk 0:02:55.7]} 6... d6 {[%clk 0:02:52.9]}
7. Nc3 {[%clk 0:02:55.4]} 7... Bg7 {[%clk 0:02:53.3]} 8. Nf3 {[%clk 0:02:55.7]}
8... O-O {[%clk 0:02:53.9]} 9. O-O {[%clk 0:02:56]} 9... Re8 {[%clk 0:02:54.4]}
10. Bf4 {[%clk 0:02:55.7]} 10... a6 {[%clk 0:02:54.7]} 11. a4 {[%clk 0:02:55.7]}
11... Nh5 {[%clk 0:02:52]} 12. Bg5 {[%clk 0:02:53.3]} 12... f6 {[%clk
0:02:45.8]} 13. Bd2 {[%clk 0:02:46.1]} 13... Bh8 {[%clk 0:02:45.8]} 14. e4
{[%clk 0:02:44]} 14... Nd7 {[%clk 0:02:41.3]} 15. Re1 {[%clk 0:02:40.5]} 15...
Qe7 {[%clk 0:02:36.4]} 16. Rb1 {[%clk 0:02:34]} 16... Ne5 {[%clk 0:02:35.2]} 17.
Nxe5 {[%clk 0:02:26.1]} 17... fxe5 {[%clk 0:02:32.3]} 18. b4 {[%clk 0:02:24.4]}
18... b6 {[%clk 0:02:21.5]} 19. bxc5 {[%clk 0:02:22.8]} 19... bxc5 {[%clk
0:02:22.4]} 20. a5 {[%clk 0:02:22.7]} 20... Rf8 {[%clk 0:02:22.2]} 21. Rb6
{[%clk 0:02:17.8]} 21... Nf6 {[%clk 0:02:19.8]} 22. Bg5 {[%clk 0:02:08.4]} 22...
Bg7 {[%clk 0:02:16.8]} 23. Qd2 {[%clk 0:01:59.3]} 23... Qc7 {[%clk 0:02:08.6]}
24. Reb1 {[%clk 0:01:49.1]} 24... Ng4 {[%clk 0:02:08.3]} 25. f3 {[%clk
0:01:45.1]} 25... Nf6 {[%clk 0:02:08.3]} 26. Na4 {[%clk 0:01:40.2]} 26... Nd7
{[%clk 0:02:07.7]} 27. Rc6 {[%clk 0:01:38.8]} 27... Qa7 {[%clk 0:02:01.7]} 28.
Rxd6 {[%clk 0:01:28.1]} 28... c4+ {[%clk 0:01:54.9]} 29. Be3 {[%clk 0:01:27.3]}
29... Qc7 {[%clk 0:01:52.5]} 30. Rc6 {[%clk 0:01:23]} 30... Qd8 {[%clk
0:01:52.5]} 31. Rxc4 {[%clk 0:01:17.3]} 31... Nf6 {[%clk 0:01:49.5]} 32. Nb6
{[%clk 0:01:09.5]} 32... Rb8 {[%clk 0:01:48.9]} 33. Rbc1 {[%clk 0:01:08.2]}
33... Bd7 {[%clk 0:01:48.1]} 34. Nxd7 {[%clk 0:01:06.9]} 34... Qxd7 {[%clk
0:01:49]} 35. Rc7 {[%clk 0:01:03.5]} 35... Qb5 {[%clk 0:01:47.9]} 36. Bh6 {[%clk
0:00:40.5]} 36... Bxh6 {[%clk 0:01:36.9]} 37. Qxh6 {[%clk 0:00:40.3]} 37... Rf7
{[%clk 0:01:22.8]} 38. Rxf7 {[%clk 0:00:39.8]} 38... Kxf7 {[%clk 0:01:16.7]} 39.
Rc7+ {[%clk 0:00:39.4]} 39... Ke8 {[%clk 0:01:10.9]} 40. Qg7 {[%clk 0:00:34.9]}
40... Qb1+ {[%clk 0:01:00]} 41. Bf1 {[%clk 0:00:35]} 1-0

[Event "Late-Titled-Tuesday-Blitz-April-23-2024"]
[Site "Chess.com"]
[Date "2024.04.23"]
[Round "10"]
[White "Szachulec75"]
[Black "tylityli"]
[Result "0-1"]
[WhiteElo "2093"]
[BlackElo "2331"]
[TimeControl "180+1"]
[EndTime "15:56:45 PDT"]
[Termination "tylityli won by resignation"]

1. Nf3 {[%clk 0:02:38.6]} 1... Nf6 {[%clk 0:02:47]} 2. g3 {[%clk 0:02:39.5]}
2... b5 {[%clk 0:02:46.2]} 3. Bg2 {[%clk 0:02:40]} 3... Bb7 {[%clk 0:02:46.9]}
4. d3 {[%clk 0:02:40.2]} 4... e6 {[%clk 0:02:47.2]} 5. O-O {[%clk 0:02:40.8]}
5... Be7 {[%clk 0:02:47.6]} 6. e4 {[%clk 0:02:40.7]} 6... d6 {[%clk 0:02:46.3]}
7. b3 {[%clk 0:02:39.3]} 7... O-O {[%clk 0:02:45.6]} 8. Bb2 {[%clk 0:02:39.9]}
8... a5 {[%clk 0:02:45.8]} 9. a4 {[%clk 0:02:38.8]} 9... b4 {[%clk 0:02:45.4]}
10. Nbd2 {[%clk 0:02:38.5]} 10... Nbd7 {[%clk 0:02:45.3]} 11. h3 {[%clk
0:02:37.8]} 11... Nb6 {[%clk 0:02:45.5]} 12. Nh2 {[%clk 0:02:34.8]} 12... e5
{[%clk 0:02:34.2]} 13. f4 {[%clk 0:02:33.4]} 13... Nfd7 {[%clk 0:02:25.7]} 14.
Kh1 {[%clk 0:02:20]} 14... Bf6 {[%clk 0:02:19.8]} 15. f5 {[%clk 0:02:19.1]}
15... d5 {[%clk 0:02:18.5]} 16. Ng4 {[%clk 0:02:10.8]} 16... c5 {[%clk
0:02:11.9]} 17. Nxf6+ {[%clk 0:02:08.2]} 17... Qxf6 {[%clk 0:02:07.8]} 18. Qe2
{[%clk 0:02:08.3]} 18... Rfe8 {[%clk 0:01:59.6]} 19. Rf2 {[%clk 0:02:02.4]}
19... Rac8 {[%clk 0:01:54.6]} 20. Raf1 {[%clk 0:02:02.3]} 20... c4 {[%clk
0:01:52.9]} 21. dxc4 {[%clk 0:02:02]} 21... dxc4 {[%clk 0:01:51.9]} 22. Bc1
{[%clk 0:01:49.4]} 22... cxb3 {[%clk 0:01:42.6]} 23. cxb3 {[%clk 0:01:49.2]}
23... Rc3 {[%clk 0:01:42.7]} 24. Nf3 {[%clk 0:01:41.6]} 24... h6 {[%clk
0:01:41.1]} 25. g4 {[%clk 0:01:38.9]} 25... Nc5 {[%clk 0:01:23.3]} 26. g5 {[%clk
0:01:38.1]} 26... hxg5 {[%clk 0:01:09.8]} 27. Bxg5 {[%clk 0:01:34]} 27... Qc6
{[%clk 0:01:07.6]} 28. Nd2 {[%clk 0:01:28.3]} 28... Ba6 {[%clk 0:01:02.1]} 29.
Qh5 {[%clk 0:01:23.1]} 29... f6 {[%clk 0:00:53.8]} 30. Bh6 {[%clk 0:01:15.6]}
30... Qc7 {[%clk 0:00:28.9]} 31. Rg1 {[%clk 0:01:13]} 31... Qf7 {[%clk
0:00:26.1]} 32. Qxf7+ {[%clk 0:01:05.9]} 32... Kxf7 {[%clk 0:00:26]} 33. Bxg7
{[%clk 0:01:06.7]} 33... Kxg7 {[%clk 0:00:24.8]} 34. Bf1+ {[%clk 0:01:06.5]}
34... Kf7 {[%clk 0:00:24.3]} 35. Bxa6 {[%clk 0:01:06.9]} 35... Nxa6 {[%clk
0:00:24.5]} 36. Rfg2 {[%clk 0:01:01.7]} 36... Rxh3+ {[%clk 0:00:20.8]} 37. Rh2
{[%clk 0:01:01.9]} 37... Reh8 {[%clk 0:00:20.3]} 38. Rxh3 {[%clk 0:01:00.8]}
38... Rxh3+ {[%clk 0:00:21.2]} 39. Kg2 {[%clk 0:01:01.1]} 39... Rd3 {[%clk
0:00:21.4]} 0-1

[Event "Late-Titled-Tuesday-Blitz-April-23-2024"]
[Site "Chess.com"]
[Date "2024.04.23"]
[Round "10"]
[White "DeArron_Fox"]
[Black "Pig-filth"]
[Result "0-1"]
[WhiteElo "2452"]
[BlackElo "2273"]
[TimeControl "180+1"]
[EndTime "15:56:48 PDT"]
[Termination "Pig-filth won on time"]

1. d4 {[%clk 0:02:47]} 1... Nc6 {[%clk 0:02:55.7]} 2. Nf3 {[%clk 0:02:43.8]}
2... d5 {[%clk 0:02:53.1]} 3. c4 {[%clk 0:02:38.1]} 3... e6 {[%clk 0:02:51.2]}
4. Nc3 {[%clk 0:02:30.4]} 4... Nf6 {[%clk 0:02:51.2]} 5. Bg5 {[%clk 0:02:20.3]}
5... Be7 {[%clk 0:02:51.2]} 6. e3 {[%clk 0:02:20.2]} 6... O-O {[%clk 0:02:46.7]}
7. Bd3 {[%clk 0:02:19.7]} 7... Nb4 {[%clk 0:02:39.2]} 8. Be2 {[%clk 0:02:14.7]}
8... dxc4 {[%clk 0:02:36.6]} 9. Bxc4 {[%clk 0:02:12.6]} 9... b6 {[%clk 0:02:33]}
10. e4 {[%clk 0:01:41]} 10... h6 {[%clk 0:02:32.5]} 11. Bf4 {[%clk 0:01:23.8]}
11... Bb7 {[%clk 0:02:25.9]} 12. a3 {[%clk 0:01:20.4]} 12... Nc6 {[%clk
0:02:22.3]} 13. O-O {[%clk 0:00:48.2]} 13... Na5 {[%clk 0:02:14.9]} 14. Bd3
{[%clk 0:00:47.4]} 14... c5 {[%clk 0:02:12.6]} 15. dxc5 {[%clk 0:00:45.3]} 15...
bxc5 {[%clk 0:02:09.1]} 16. Qe2 {[%clk 0:00:30.7]} 16... g5 {[%clk 0:02:00.3]}
17. Bg3 {[%clk 0:00:10]} 17... Nh5 {[%clk 0:01:40.8]} 18. Be5 {[%clk 0:00:04.8]}
18... Nc6 {[%clk 0:01:37.2]} 19. Rad1 {[%clk 0:00:02.7]} 19... Nxe5 {[%clk
0:01:29.9]} 20. Nxe5 {[%clk 0:00:03.6]} 20... Nf4 {[%clk 0:01:25.2]} 21. Qf3
{[%clk 0:00:02.5]} 21... Qc7 {[%clk 0:01:20.7]} 22. Nc4 {[%clk 0:00:02.6]} 22...
Ba6 {[%clk 0:01:10.2]} 23. e5 {[%clk 0:00:02]} 23... Nxd3 {[%clk 0:01:04.9]} 24.
Qxd3 {[%clk 0:00:01.9]} 24... Rad8 {[%clk 0:01:01.4]} 25. Qe4 {[%clk 0:00:02.5]}
25... Rd4 {[%clk 0:00:56.9]} 26. Rxd4 {[%clk 0:00:02.2]} 26... cxd4 {[%clk
0:00:57.2]} 27. Nd6 {[%clk 0:00:01.2]} 27... Bxf1 {[%clk 0:00:48.9]} 0-1

[Event "Late-Titled-Tuesday-Blitz-April-23-2024"]
[Site "Chess.com"]
[Date "2024.04.23"]
[Round "10"]
[White "titomagno_64"]
[Black "Nemsko"]
[Result "0-1"]
[WhiteElo "2312"]
[BlackElo "2453"]
[TimeControl "180+1"]
[EndTime "15:56:53 PDT"]
[Termination "Nemsko won on time"]

1. d4 {[%clk 0:03:00.9]} 1... Nf6 {[%clk 0:02:59]} 2. c4 {[%clk 0:03:01.2]} 2...
e6 {[%clk 0:02:55.6]} 3. Nf3 {[%clk 0:03:00.7]} 3... b6 {[%clk 0:02:54.2]} 4. g3
{[%clk 0:03:00.5]} 4... Ba6 {[%clk 0:02:51.8]} 5. b3 {[%clk 0:03:00.6]} 5...
Bb4+ {[%clk 0:02:49.8]} 6. Nbd2 {[%clk 0:03:01.1]} 6... Be7 {[%clk 0:02:50.3]}
7. Bg2 {[%clk 0:02:58.7]} 7... d5 {[%clk 0:02:50.2]} 8. Ne5 {[%clk 0:02:58.1]}
8... c6 {[%clk 0:02:50.3]} 9. O-O {[%clk 0:02:53.4]} 9... O-O {[%clk 0:02:49.1]}
10. Bb2 {[%clk 0:02:49.4]} 10... Nfd7 {[%clk 0:02:48.8]} 11. Nd3 {[%clk
0:02:44.4]} 11... Bf6 {[%clk 0:02:48.6]} 12. e4 {[%clk 0:02:40.8]} 12... dxe4
{[%clk 0:02:33.4]} 13. Nxe4 {[%clk 0:02:41.7]} 13... Be7 {[%clk 0:02:30]} 14.
Re1 {[%clk 0:02:23.6]} 14... Bb7 {[%clk 0:02:25.1]} 15. c5 {[%clk 0:02:07.5]}
15... Nf6 {[%clk 0:02:22.6]} 16. b4 {[%clk 0:01:26.6]} 16... Qc7 {[%clk
0:02:07.1]} 17. Rc1 {[%clk 0:01:17.9]} 17... Nbd7 {[%clk 0:02:04.8]} 18. b5
{[%clk 0:00:59.1]} 18... bxc5 {[%clk 0:02:02.9]} 19. dxc5 {[%clk 0:00:55.6]}
19... Nxe4 {[%clk 0:01:55]} 20. Bxe4 {[%clk 0:00:53.7]} 20... Bf6 {[%clk
0:01:53.4]} 21. Ba3 {[%clk 0:00:28.4]} 21... Rfd8 {[%clk 0:01:41.9]} 22. Qf3
{[%clk 0:00:27.8]} 22... Rac8 {[%clk 0:01:38.1]} 23. Nb4 {[%clk 0:00:21.5]}
23... Ne5 {[%clk 0:01:37.6]} 24. Qg2 {[%clk 0:00:20.9]} 24... Qa5 {[%clk
0:01:32.1]} 25. bxc6 {[%clk 0:00:10.1]} 25... Ba8 {[%clk 0:01:23.6]} 26. Re3
{[%clk 0:00:08]} 26... Nc4 {[%clk 0:01:18.4]} 27. Rxc4 {[%clk 0:00:02.2]} 27...
Rd1+ {[%clk 0:01:18.5]} 28. Qf1 {[%clk 0:00:02.6]} 28... Rxf1+ {[%clk
0:01:18.5]} 29. Kxf1 {[%clk 0:00:03.5]} 29... g6 {[%clk 0:01:03.9]} 30. h4
{[%clk 0:00:03.5]} 30... h5 {[%clk 0:01:03]} 31. Rc1 {[%clk 0:00:01.2]} 31...
Bd4 {[%clk 0:00:59]} 32. Rb3 {[%clk 0:00:01.3]} 32... Bxc5 {[%clk 0:00:55.4]}
33. Nc2 {[%clk 0:00:01.3]} 33... Bxa3 {[%clk 0:00:53.5]} 34. Rxa3 {[%clk
0:00:02]} 34... Qd2 {[%clk 0:00:49.9]} 0-1